{"text_format":"1","workbook":"xlsx","n_sheets":6,"sheets":["0РТ.101.003 ОЛ","SYXZ7-9-35!200","RS12-Y-200-41.5-10.09.0","SYXZZ-40.5!200-9","CVIII-350Y!40.5-10090","Лист регистрации изменений"],"not_rendered":{"charts":0,"images":1,"macros":1,"external_links":0,"defined_names":29,"comments":0,"pivot_tables":0},"unopened":[],"bounds":{"document_bytes":16777216,"sheet_cells":100000,"rows_first":2000,"rows_last":500,"rows_between":2000,"halvings":0,"cell_chars":16384,"cell_head_chars":4096},"cells_cut":0,"cells_raw":0,"read":"whole","date_system":"1900"}

{"sheet":"0РТ.101.003 ОЛ","index":0,"n_rows":198,"n_cols":13,"rows_kept":198,"cut":false,"hidden":false,"merged":[[134,11,134,12],[135,11,135,12],[136,11,136,12],[137,11,137,12],[138,11,138,12],[139,11,139,12],[140,9,140,10],[185,0,185,6],[185,7,185,12],[182,0,182,6],[182,7,182,12],[174,11,175,12],[174,9,175,10],[177,1,177,8],[180,0,180,6],[180,7,180,12],[184,0,184,6],[181,7,181,12],[181,0,181,6],[184,7,184,12],[183,0,183,12],[174,0,175,0],[178,1,178,8],[178,9,178,10],[178,11,178,12],[164,0,165,0],[164,1,165,8],[166,0,167,0],[168,11,169,12],[170,11,171,12],[172,11,173,12],[170,1,171,8],[170,9,171,10],[172,0,173,0],[172,1,173,8],[166,1,167,8],[164,11,165,12],[166,11,167,12],[168,0,169,0],[168,1,169,8],[168,9,169,10],[174,1,175,8],[154,0,154,12],[155,11,155,12],[156,11,156,12],[157,0,157,12],[158,11,158,12],[159,11,159,12],[160,11,160,12],[161,11,161,12],[155,1,155,8],[155,9,155,10],[156,1,156,8],[156,9,156,10],[160,9,160,10],[161,1,161,8],[160,1,160,8],[158,1,158,8],[158,9,158,10],[159,1,159,8],[159,9,159,10],[162,9,162,10],[177,9,177,10],[161,9,161,10],[162,1,162,8],[163,0,163,12],[162,11,162,12],[164,9,165,10],[176,0,176,12],[172,9,173,10],[166,9,167,10],[177,11,177,12],[145,11,145,12],[146,0,146,12],[147,11,147,12],[148,11,148,12],[149,0,149,12],[150,11,150,12],[151,1,151,8],[151,9,151,10],[151,11,151,12],[145,1,145,8],[145,9,145,10],[147,1,147,8],[147,9,147,10],[148,1,148,8],[148,9,148,10],[150,1,150,8],[150,9,150,10],[153,1,153,8],[153,9,153,10],[153,11,153,12],[125,11,125,12],[126,11,126,12],[127,11,127,12],[128,11,128,12],[129,0,129,12],[130,11,130,12],[132,0,132,12],[133,11,133,12],[133,1,133,8],[133,9,133,10],[125,9,125,10],[128,1,128,8],[128,9,128,10],[125,1,125,8],[126,9,126,10],[127,1,127,8],[127,9,127,10],[126,1,126,8],[131,1,131,8],[131,11,131,12],[131,9,131,10],[116,11,116,12],[117,11,117,12],[118,0,118,12],[119,11,119,12],[120,11,120,12],[121,11,121,12],[122,0,122,12],[123,11,123,12],[124,11,124,12],[117,1,117,8],[117,9,117,10],[119,1,119,8],[119,9,119,10],[120,1,120,8],[120,9,120,10],[121,1,121,8],[121,9,121,10],[116,1,116,8],[116,9,116,10],[123,1,123,8],[123,9,123,10],[124,1,124,8],[124,9,124,10],[113,11,113,12],[114,11,114,12],[115,11,115,12],[110,1,110,8],[110,9,110,10],[111,1,111,8],[111,9,111,10],[113,1,113,8],[113,9,113,10],[114,1,114,8],[114,9,114,10],[115,1,115,8],[115,9,115,10],[194,0,194,12],[195,0,195,12],[64,1,64,8],[64,9,64,10],[65,1,65,8],[65,9,65,10],[66,1,66,8],[66,9,66,10],[67,1,67,8],[67,9,67,10],[68,11,68,12],[68,1,68,8],[68,9,68,10],[69,0,69,12],[70,0,70,12],[79,0,79,12],[71,11,71,12],[72,11,72,12],[73,11,73,12],[74,11,74,12],[75,11,75,12],[87,11,87,12],[88,11,88,12],[80,1,80,8],[192,0,192,12],[80,9,80,10],[84,1,84,8],[84,9,84,10],[85,1,85,8],[85,9,85,10],[86,1,86,8],[86,9,86,10],[87,1,87,8],[87,9,87,10],[88,1,88,8],[88,9,88,10],[82,1,82,8],[82,9,82,10],[83,1,83,8],[96,9,96,10],[107,0,107,12],[108,11,108,12],[108,1,108,8],[108,9,108,10],[106,9,106,10],[103,1,103,8],[105,1,105,8],[105,9,105,10],[26,1,26,8],[26,9,26,10],[27,1,27,8],[27,9,27,10],[28,1,28,8],[28,9,28,10],[188,0,188,12],[189,0,189,12],[100,1,100,8],[100,9,100,10],[101,1,101,8],[101,9,101,10],[102,0,102,12],[103,11,103,12],[104,11,104,12],[105,11,105,12],[106,11,106,12],[101,11,101,12],[109,11,109,12],[110,11,110,12],[111,11,111,12],[112,0,112,12],[109,1,109,8],[109,9,109,10],[30,11,30,12],[31,11,31,12],[32,11,32,12],[33,11,33,12],[40,11,40,12],[41,11,41,12],[42,11,42,12],[43,11,43,12],[44,11,44,12],[34,11,34,12],[35,11,35,12],[36,11,36,12],[89,11,89,12],[90,11,90,12],[83,9,83,10],[95,1,95,8],[30,1,30,8],[30,9,30,10],[31,1,31,8],[31,9,31,10],[32,1,32,8],[32,9,32,10],[33,1,33,8],[33,9,33,10],[44,1,44,8],[44,9,44,10],[37,0,37,12],[34,1,34,8],[34,9,34,10],[35,1,35,8],[35,9,35,10],[36,1,36,8],[36,9,36,10],[38,11,38,12],[39,11,39,12],[42,1,42,8],[60,0,60,12],[61,11,61,12],[65,11,65,12],[77,1,77,8],[99,0,99,12],[100,11,100,12],[97,1,97,8],[97,9,97,10],[96,1,96,8],[78,1,78,8],[78,9,78,10],[91,11,91,12],[92,11,92,12],[93,11,93,12],[94,0,94,12],[95,11,95,12],[90,1,90,8],[90,9,90,10],[91,1,91,8],[91,9,91,10],[93,1,93,8],[93,9,93,10],[92,1,92,8],[92,9,92,10],[61,1,61,8],[61,9,61,10],[62,1,62,8],[62,9,62,10],[76,11,76,12],[77,11,77,12],[71,1,71,8],[71,9,71,10],[72,1,72,8],[72,9,72,10],[73,1,73,8],[73,9,73,10],[142,0,142,12],[143,11,143,12],[144,11,144,12],[134,1,134,8],[134,9,134,10],[135,1,135,8],[135,9,135,10],[136,1,136,8],[136,9,136,10],[139,1,139,8],[139,9,139,10],[137,1,137,8],[137,9,137,10],[138,1,138,8],[138,9,138,10],[143,1,143,8],[143,9,143,10],[144,1,144,8],[144,9,144,10],[141,1,141,8],[141,9,141,10],[141,11,141,12],[140,1,140,8],[140,11,140,12],[9,0,9,12],[10,0,10,12],[11,3,11,12],[12,0,12,12],[15,11,15,12],[16,11,16,12],[17,11,17,12],[18,11,18,12],[19,11,19,12],[13,11,14,12],[13,0,14,0],[13,1,14,8],[13,9,14,10],[15,1,15,8],[15,9,15,10],[16,1,16,8],[16,9,16,10],[11,0,11,2],[17,1,17,8],[17,9,17,10],[18,1,18,8],[18,9,18,10],[19,1,19,8],[19,9,19,10],[25,11,25,12],[26,11,26,12],[27,11,27,12],[20,1,20,8],[20,9,20,10],[21,1,21,8],[21,9,21,10],[28,11,28,12],[29,11,29,12],[20,11,20,12],[21,11,21,12],[22,11,22,12],[23,11,23,12],[24,11,24,12],[29,1,29,8],[29,9,29,10],[22,1,22,8],[22,9,22,10],[23,1,23,8],[23,9,23,10],[24,1,24,8],[24,9,24,10],[25,1,25,8],[25,9,25,10],[80,11,80,12],[81,0,81,12],[82,11,82,12],[83,11,83,12],[84,11,84,12],[85,11,85,12],[86,11,86,12],[74,1,74,8],[74,9,74,10],[75,1,75,8],[75,9,75,10],[76,1,76,8],[76,9,76,10],[77,9,77,10],[78,11,78,12],[58,0,58,12],[56,11,56,12],[57,11,57,12],[59,11,59,12],[50,1,50,8],[50,9,50,10],[52,1,52,8],[52,9,52,10],[53,1,53,8],[59,9,59,10],[53,9,53,10],[55,9,55,10],[49,9,49,10],[47,1,47,8],[47,9,47,10],[38,1,38,8],[38,9,38,10],[39,1,39,8],[39,9,39,10],[40,1,40,8],[40,9,40,10],[41,1,41,8],[41,9,41,10],[42,9,42,10],[43,1,43,8],[43,9,43,10],[45,1,45,8],[45,9,45,10],[46,1,46,8],[46,9,46,10],[49,1,49,8],[89,9,89,10],[48,1,48,8],[48,9,48,10],[98,1,98,8],[98,9,98,10],[98,11,98,12],[45,11,45,12],[46,11,46,12],[57,9,57,10],[47,11,47,12],[48,11,48,12],[49,11,49,12],[50,11,50,12],[51,0,51,12],[52,11,52,12],[53,11,53,12],[54,11,54,12],[55,11,55,12],[54,1,54,8],[54,9,54,10],[55,1,55,8],[56,1,56,8],[56,9,56,10],[57,1,57,8],[193,0,193,12],[186,0,186,6],[186,7,186,12],[106,1,106,8],[95,9,95,10],[96,11,96,12],[97,11,97,12],[59,1,59,8],[179,0,179,12],[103,9,103,10],[104,1,104,8],[104,9,104,10],[130,1,130,8],[130,9,130,10],[170,0,171,0],[62,11,62,12],[63,0,63,12],[64,11,64,12],[66,11,66,12],[67,11,67,12],[152,1,152,8],[152,9,152,10],[152,11,152,12],[89,1,89,8]]}
[]
[]
[]
[]
[]
[null,"443048, Россия, г. Самара, пос. Красная Глинка, корпус заводоуправления ОАО \"Электрощит\"                              ",null,null,null,null,null,null,null,null,null,"ИНН 6313009980"]
[null,"Т: +7 846 2777444, 373 5055 | Ф: +7 846 3735055 | E: sales@electroshield.ru                                                                  ",null,null,null,null,null,null,null,null,null," КПП 509950001"]
[]
[null,null,null,null,null,null,null,null,null,null,null,null,"Изм. 2"]
["0РТ.101.003 ОЛ1"]
["Трансформаторы масляные силовые"]
["Обозначение2"]
["Основные параметры"]
["№ п/п","Параметр",null,null,null,null,null,null,null,"Значение параметра Электрощит Самара",null,"Значение параметра Заказчика6"]
[]
[1.1000000000000001,"Нормативный документ",null,null,null,null,null,null,null,"ТУ 3411-165-15356352-2011",null,"-"]
[1.2,"Тип",null,null,null,null,null,null,null,"ТМН-СЭЩ",null,"-"]
[1.3,"Номинальная мощность, кВА",null,null,null,null,null,null,null,6300,null,"-"]
["1.3.1","Номинальная мощность обмотки ВН, кВА",null,null,null,null,null,null,null,{"$f":"MoshnostBH(Mosh1)","v":6300},null,"-"]
["1.3.2","Номинальная мощность обмотки НН, кВА",null,null,null,null,null,null,null,{"$f":"MoshnostHH(Mosh1)","v":6300},null,"-"]
["1.4","Класс напряжения обмотки ВН, кВ",null,null,null,null,null,null,null,35,null,"-"]
["1.4.1","Номинальное напряжение обмотки ВН, кВ",null,null,null,null,null,null,null,35,null,"-"]
["1.4.2","Наибольшее рабочее напряжение обмотки ВН, кВ",null,null,null,null,null,null,null,{"$f":"NaprajenieRabocheeBH(Napr1)","v":40.5},null,"-"]
["1.5","Класс напряжения обмотки НН, кВ",null,null,null,null,null,null,null,6,null,"-"]
["1.5.1","Номинальное напряжение обмотки НН, кВ",null,null,null,null,null,null,null,6.3,null,"-"]
["1.5.2","Наибольшее рабочее напряжение обмотки НН, кВ",null,null,null,null,null,null,null,{"$f":"NaprajenieRabocheeHH(Napr3)","v":7.2},null,"-"]
["1.6","Условное обозначение схемы и группы соединений обмоток",null,null,null,null,null,null,null,"Y/D-11",null,"-"]
["1.7","Диапазон и число ступеней регулирования обмотки ВН",null,null,null,null,null,null,null,{"$f":"DiapazonIChislo(_Tip1)","v":"±4х2.5%"},null,"-"]
["1.8","Потери холостого хода на основном ответвлении, Вт",null,null,null,null,null,null,null,{"$f":"PoteriXX(_Tip1, Mosh1, Napr5)","v":"8000"},null,"-"]
["1.9","Потери короткого замыкания на основном ответвлении, Вт",null,null,null,null,null,null,null,{"$f":"PoteriKZ(Mosh1, Napr3)","v":"46500"},null,"-"]
["1.10","Напряжение короткого замыкания на основном ответвлении, %",null,null,null,null,null,null,null,{"$f":"NaprajenieKZ(Mosh1,Napr5)","v":"7.5"},null,"-"]
["1.11","Ток холостого хода на основном ответвлении, %",null,null,null,null,null,null,null,{"$f":"TokXX(Mosh1)","v":"0.8"},null,"-"]
["1.12","Полная масса, не более, кг",null,null,null,null,null,null,null,14465,null,"-"]
["1.13","Транспортная масса, не более, кг",null,null,null,null,null,null,null,11820,null,"-"]
["1.14","Масса жидкого диэлектрика, не более, кг",null,null,null,null,null,null,null,3765,null,"-"]
["1.15","Габаритные размеры (длина/ширина/высота/высота до крышки), не более, мм",null,null,null,null,null,null,null,"3525/2762/3876/2345",null,"-"]
["1.16","Материал обмоток НН-ВН",null,null,null,null,null,null,null,"Алюминий-Алюминий",null,"-"]
["Условия работы"]
[2.1,"Число фаз",null,null,null,null,null,null,null,3,null,"-"]
[2.2000000000000002,"Высота установки над уровнем моря, не более, м",null,null,null,null,null,null,null,1000,null,"-"]
[2.2999999999999998,"Климатическое исполнение по ГОСТ 15150-69",null,null,null,null,null,null,null,"УХЛ",null,"-"]
["2.3.1","Верхнее рабочее значение температуры воздуха при эксплуатации, °С",null,null,null,null,null,null,null,{"$f":"VerhneeRabochee(_Kli1)","v":"+40"},null,"-"]
["2.3.2","Верхнее предельное значение температуры воздуха при эксплуатации, °С",null,null,null,null,null,null,null,{"$f":"VerhneePredelnoe(_Kli1)","v":"+45"},null,"-"]
["2.3.3","Нижнее рабочее значение температуры воздуха при эксплуатации, °С",null,null,null,null,null,null,null,{"$f":"NijneeRabochee(_Kli1)","v":"-60"},null,"-"]
["2.3.4","Нижнее предельное значение температуры воздуха при эксплуатации, °С",null,null,null,null,null,null,null,{"$f":"NijneePredelnoe(_Kli1)","v":"-70"},null,"-"]
["2.4","Номинальная частота питающей сети по ГОСТ 13109-97, Гц",null,null,null,null,null,null,null,50,null,"-"]
["2.5","Степень загрязнения окружающей среды по ГОСТ 15150-69",null,null,null,null,null,null,null,"I",null,"-"]
["2.6","Интенсивность землетрясения по ГОСТ 17516.1-90, баллы по MSK-644",null,null,null,null,null,null,null,"-",null,"-"]
["2.6.1","Уровень установки трансформатора над нулевой отметкой, м",null,null,null,null,null,null,null,"Св. 0  до 10",null,"-"]
["2.7","Категория размещения по ГОСТ 15150-69",null,null,null,null,null,null,null,1,null,"-"]
["2.8","Вид системы охлаждения",null,null,null,null,null,null,null,"М",null,"-"]
["Требования по нагреву"]
["3.1","Среднее превышение температуры обмоток, °С",null,null,null,null,null,null,null,65,null,"-"]
["3.2","Превышение температуры жидкого диэлектрика в верхних слоях, °С",null,null,null,null,null,null,null,60,null,"-"]
["3.3","Превышение температуры магнитной системы и металлоконструкций, °С",null,null,null,null,null,null,null,75,null,"-"]
["3.4","Превышение температуры контактов съемных вводов в жидком диэлектрике, °С",null,null,null,null,null,null,null,85,null,"-"]
["3.5","Превышение температуры контактов съемных вводов в воздухе, °С",null,null,null,null,null,null,null,65,null,"-"]
["3.6","Средняя температура обмоток при токах короткого замыкания, °С",null,null,null,null,null,null,null,{"$f":"TempKZ(_Mat1)","v":200},null,"-"]
["Нагрузочная способность"]
["4.1","Допустимые систематическиеи нагрузки и перегрузки",null,null,null,null,null,null,null,"ГОСТ 14209-85",null,"-"]
["Требования к электрической прочности изоляции"]
["5.1","Электрическая прочность изоляции",null,null,null,null,null,null,null,"ГОСТ 1516.3-96",null,"-"]
["5.2","Уровень исполнения внутренней изоляции по ГОСТ 1516.3-96",null,null,null,null,null,null,null,"б",null,"-"]
["Требования к стойкости при коротких замыканиях"]
["6.1","Наибольший установившийся ток короткого замыкания, кА",null,null,null,null,null,null,null,"ГОСТ Р 52719-2007",null,"-"]
["6.2","Мощность трехфазного короткого замыкания сети, МВА",null,null,null,null,null,null,null,{"$f":"MoshnostKZ(Napr5)","v":2500},null,"-"]
["6.3","Наибольший ударный ток короткого замыкания, кА",null,null,null,null,null,null,null,"ГОСТ Р 52719-2007",null,"-"]
["6.4","Наибольшая продолжительность короткого замыкания, с",null,null,null,null,null,null,null,4,null,"-"]
["6.5","Действующее значение ударного толчка током",null,null,null,null,null,null,null,"ГОСТ Р 52719-2007",null,"-"]
["Требования к составным частям"]
["Вводы"]
["7.1","Тип ввода ВН",null,null,null,null,null,null,null,"35 кВ/II*",null,"-"]
["7.1.1","Удельная длина пути утечки по ГОСТ 9920-89, не менее, см/кВ",null,null,null,null,null,null,null,{"$f":"YdDlina(_Tip8)","v":2.25},null,"-"]
["7.1.2","Цвет изолятора",null,null,null,null,null,null,null,"Коричневый",null,"-"]
["7.1.3","Длительные консольные нагрузки, Н",null,null,null,null,null,null,null,1000,null,"-"]
["7.2","Тип ввода НН",null,null,null,null,null,null,null,"10 кВ/II*",null,"-"]
["7.2.1","Удельная длина пути утечки по ГОСТ 9920-89, не менее, см/кВ",null,null,null,null,null,null,null,{"$f":"YdDlina(_Tip9)","v":2.25},null,"-"]
["7.2.2","Цвет изолятора",null,null,null,null,null,null,null,"Коричневый",null,"-"]
["7.2.3","Длительные консольные нагрузки, Н",null,null,null,null,null,null,null,1000,null,"-"]
["Устройство переключающее "]
["7.3","Тип устройства переключающего ",null,null,null,null,null,null,null,"SYXZZ-40.5/200-9",null,"-"]
["Трансформаторы встроенные тока"]
["7.4","Тип встроенного трансформатора тока на стороне ВН №1",null,null,null,null,null,null,null,"ТВ-СЭЩ",null,"-"]
["7.4.1","Первичный ток встроенного трансфорамтора тока №1, А",null,null,null,null,null,null,null,{"$f":"TokPervTT(Napr1, Mosh1, _Tip10, _Tip11)","v":"100/150/200/300"},null,"-"]
["7.4.2","Вторичный ток встроенного трансфорамтора тока №1, А",null,null,null,null,null,null,null,"5/5/5/5",null,"-"]
["7.4.3","Класс точности встроенного трансфорамтора тока №1",null,null,null,null,null,null,null,"-/-/10Р/10Р",null,"-"]
["7.4.4","Номинальная вторичная нагрузка  встроенного трансформатора тока №1, ВА",null,null,null,null,null,null,null,"10/15/15/15",null,"-"]
["7.4.5","Номинальная вторичная кратность встроенного трансформатора тока №1",null,null,null,null,null,null,null,"8/10/14/18",null,"-"]
["7.5","Тип встроенного трансформатора тока на стороне ВН №2",null,null,null,null,null,null,null,"ТВ-СЭЩ",null,"-"]
["7.5.1","Первичный ток встроенного трансфорамтора тока №2, А",null,null,null,null,null,null,null,{"$f":"TokPervTT(Napr1, Mosh1, _Tip10, _Tip11)","v":"100/150/200/300"},null,"-"]
["7.5.2","Вторичный ток встроенного трансфорамтора тока №2, А",null,null,null,null,null,null,null,"5/5/5/5",null,"-"]
["7.5.3","Класс точности встроенного трансфорамтора тока №2",null,null,null,null,null,null,null,"-/-/10Р/10Р",null,"-"]
["7.5.4","Номинальная вторичная нагрузка  встроенного трансформатора тока №2, ВА",null,null,null,null,null,null,null,"10/15/15/15",null,"-"]
["7.5.5","Номинальная вторичная кратность встроенного трансформатора тока №2",null,null,null,null,null,null,null,"8/10/14/18",null,"-"]
["Клеммная коробка и кабели"]
["7.6.1","Степень защиты клеммной коробки по ГОСТ 14254-96",null,null,null,null,null,null,null,"IP 55",null,"-"]
["7.6.2","Кабели контрольных, сигнальных и защитных устройств в защитной оболочке",null,null,null,null,null,null,null,"Да",null,"-"]
["7.6.3","Сечение кабелей от трансформаторов встроенных тока, не менее, мм2",null,null,null,null,null,null,null,2.5,null,"-"]
["7.6.4","Сечение кабелей от контрольных, сигнальных и защитных устройств, не менее, мм2",null,null,null,null,null,null,null,1.5,null,"-"]
["Термосифонный фильтр"]
["7.7","Термосифонный фильтр",null,null,null,null,null,null,null,"Да",null,"-"]
["7.7.1","Технический силикагель",null,null,null,null,null,null,null,"Да",null,"-"]
["Индикатор уровня жидкого диэлектрика"]
["7.8","Тип индикатора уровня жидкого диэлектрика",null,null,null,null,null,null,null,"МС-2",null,"-"]
["7.8.1","Контрольные метки",null,null,null,null,null,null,null,{"$f":"Metki(_Kli1,_Tip5)","v":"-60; +15; +40"},null,"-"]
["7.8.2","Контактная система уровня минимального/максимального",null,null,null,null,null,null,null,"1 NO/1 NO",null,"-"]
["7.8.3","Номинальное напряжение питания, В",null,null,null,null,null,null,null,"AC/DC 220 В 50 Гц",null,"-"]
["Индикатор температуры"]
["7.9","Тип индикатора температуры",null,null,null,null,null,null,null,"ТКП-160Cr-УХЛ2",null,"-"]
["7.9.1","Тип сигнала",null,null,null,null,null,null,null,"-",null,"-"]
["7.9.2","Контактная система сигнальная/отключающая",null,null,null,null,null,null,null,"1 NC/1 NO",null,"-"]
["7.9.3","Номинальное напряжение питания, В",null,null,null,null,null,null,null,"AC 220 В 50 Гц",null,"-"]
["Реле газовое"]
["7.10","Тип реле",null,null,null,null,null,null,null,"ABR-50",null,"-"]
["7.10.1","Уставка по скорости потока жидкого диэлектрика, м/с",null,null,null,null,null,null,null,0.65,null,"-"]
["7.10.2","Выносное устройство для отбора пробы газа",null,null,null,null,null,null,null,"Да",null,"-"]
["7.10.3","Контактная система сигнальная/отключающая",null,null,null,null,null,null,null,"2 NO/2 NO",null,"-"]
["7.10.4","Номинальное напряжение питания, В",null,null,null,null,null,null,null,"AC/DC 220 В 50 Гц",null,"-"]
["Клапан предохранительный"]
["7.11","Тип клапана предохранительного",null,null,null,null,null,null,null,"Пружинный",null,"-"]
["7.11.1","Контактная система",null,null,null,null,null,null,null,"1 NO/1 NC",null,"-"]
["7.11.2","Номинальное напряжение питания, В",null,null,null,null,null,null,null,"AC/DC 220 В 50 Гц",null,"-"]
["Воздухоосушитель"]
["7.12","Тип воздухоосушителя",null,null,null,null,null,null,null,"Обслуживаемый",null,"-"]
["7.12.1","Технический силикагель",null,null,null,null,null,null,null,"Да",null,"-"]
["7.12.2","Индикаторный силикагель",null,null,null,null,null,null,null,"Да",null,"-"]
["7.12.3","Тип сигнала",null,null,null,null,null,null,null,"-",null,"-"]
["7.12.4","Контактная система",null,null,null,null,null,null,null,"-",null,"-"]
["7.12.5","Номинальное напряжение питания, В",null,null,null,null,null,null,null,"-",null,"-"]
["Устройства для перекатки"]
["7.13","Тип катков",null,null,null,null,null,null,null,"Гладкие",null,"-"]
["7.13.1","Расстояние между средними линиями гладких катков А по ГОСТ Р 52719-2007",null,null,null,null,null,null,null,{"$f":"Katki(_Tip7, Mosh1)","v":"1594/1594"},null,"-"]
["Требования к конструкции"]
["7.14","Уровень разъема бака",null,null,null,null,null,null,null,"Верхний",null,"-"]
["7.15","Заземление магнитопровода",null,null,null,null,null,null,null,"Внутри бака",null,"-"]
["7.16","Цвет покрытия",null,null,null,null,null,null,null,"RAL 7032",null,"-"]
["7.17","Вид изолирующей и охлаждающей среды",null,null,null,null,null,null,null,"Масло минеральное",null,"-"]
["7.18","Стационарная лестница",null,null,null,null,null,null,null,"-",null,"-"]
["7.19","Зажим аппаратный штырьевой ВН",null,null,null,null,null,null,null,"-",null,"-"]
["7.20","Зажим аппаратный штырьевой НН",null,null,null,null,null,null,null,"-",null,"-"]
["7.21","Кронштейн с опорными изоляторами ВН",null,null,null,null,null,null,null,"-",null,"-"]
["7.22","Кронштейн с опорными изоляторами НН",null,null,null,null,null,null,null,"-",null,"-"]
["Требования к системе охлаждения"]
["7.21","Тип охладителей",null,null,null,null,null,null,null,"Панельный",null,"-"]
["7.22","Количество охладителей",null,null,null,null,null,null,null,6,null,"-"]
["7.23","Компоновка охладителей",null,null,null,null,null,null,null,"Навесная",null,"-"]
["Требования к надежности"]
["8.1","Установленная наработка на отказ, не менее, ч",null,null,null,null,null,null,null,25000,null,"-"]
["8.2","Полный срок службы, не менее, лет",null,null,null,null,null,null,null,30,null,"-"]
["Комплектность"]
["9.1","Трансформатор и составные части по ТУ 3411-165-15356352-2011",null,null,null,null,null,null,null,"Да",null,"-"]
["9.2","Жидкий диэлектрик для долива и технологических нужд, от объема, %5",null,null,null,null,null,null,null,10,null,"-"]
["9.3","Эксплуатационная документация на русском языке на бумажном носителе, экз.",null,null,null,null,null,null,null,1,null,"-"]
["9.4","Эксплуатационная документация на русском языке на электронном носителе, экз.",null,null,null,null,null,null,null,"-",null,"-"]
["Маркировка и упаковка"]
["10.1","Маркировка по ГОСТ 11920-85 и ГОСТ Р 52719-2007",null,null,null,null,null,null,null,"Да",null,"-"]
["10.2","Упаковка по ГОСТ 11920-85 и ГОСТ Р 52719-2007",null,null,null,null,null,null,null,"Да",null,"-"]
["Требования безопасности"]
["11.1","Требования безопасности по ГОСТ 11920-85 и ГОСТ Р 52719-2007",null,null,null,null,null,null,null,"Да",null,"-"]
["11.2","Диаметр резьбы для заземления",null,null,null,null,null,null,null,"М12",null,"-"]
["11.3","Поверхность заземляющего контакта, не менее, мм",null,null,null,null,null,null,null,"5х30х40",null,"-"]
["11.4","Заземляющий контакт внизу бака на стороне НН",null,null,null,null,null,null,null,"Да",null,"-"]
["11.4","Значение корректированного уровня звуковой мощности, не более, дБА",null,null,null,null,null,null,null,{"$f":"YrovenZM(Mosh1)","v":81},null,"-"]
["Транспортирование и хранение"]
["12.1","Условия транспортирования трансформатора в части воздействия климатических факторов по ГОСТ 15150-69",null,null,null,null,null,null,null,8,null,"-"]
[]
["12.2","Условия транспортирования демонтированных и составных частей в части воздействия климатических факторов по ГОСТ 15150-69",null,null,null,null,null,null,null,5,null,"-"]
[]
["12.3","Условия транспортирования трансформатора в части воздействия механических факторов по ГОСТ 23216-78",null,null,null,null,null,null,null,"Ж",null,"-"]
[]
["12.4","Условия транспортирования демонтированных и составных частей в части воздействия механических факторов по ГОСТ 23216-78",null,null,null,null,null,null,null,"Ж",null,"-"]
[]
["12.5","Условия хранения трансформатора в части воздействия климатических факторов по ГОСТ 15150-69",null,null,null,null,null,null,null,8,null,"-"]
[]
["12.6","Условия хранения демонтированных и составных частей в части воздействия климатических факторов по ГОСТ 15150-69",null,null,null,null,null,null,null,5,null,"-"]
[]
["Гарантии изготовителя"]
["13.1","Гарантийный срок эксплуатации, лет6",null,null,null,null,null,null,null,3,null,"-"]
["13.2","Участие шеф-инженера Электрощит Самара при монтаже7",null,null,null,null,null,null,null,"Да",null,"-"]
["Комплект запасных частей"]
["Комплект запасных частей Электрощит Самара",null,null,null,null,null,null,"Комплект запасных частей Заказчика6"]
[]
["-",null,null,null,null,null,null,"-"]
["Особые требования"]
["Особые требования Электрощит Самара",null,null,null,null,null,null,"Особые требования Заказчика6"]
[]
["-",null,null,null,null,null,null,"-"]
[]
["1Параметры и предельные отклонения параметров не указанные в опросном листе по ГОСТ Р 52719-2007."]
["2Заполняется Электрощит Самара."]
["3При выполнении работ по погрузке, выгрузке, монтажу, вводу в эксплуатацию и ремонту трансформатора без участия шеф - инженера"]
["Электрощит Самара, Электрощит Самара имеет право снять гарантию, установленную договором."]
["4Для стационарных изделий, б, по ГОСТ 17516.1-90."]
["5Жидкий диэлектрик не подготовленный."]
["6Гарантийный срок эксплуатации исчисляется со дня ввода трансформатора в эксплуатацию, но не позднее 6 месяцев со дня отгрузки с Электрощит Самара."]
["7Значение является справочным."]
[]
[null,"electroshield.ru"]

{"sheet":"SYXZ7-9-35!200","index":1,"n_rows":46,"n_cols":12,"rows_kept":46,"cut":false,"hidden":true,"merged":[[7,0,8,0],[7,1,8,8],[7,9,8,10],[7,11,8,12],[9,1,9,8],[9,9,9,10],[9,11,9,12],[0,0,0,12],[1,0,1,12],[2,0,2,12],[3,0,4,0],[3,1,4,8],[3,9,4,10],[3,11,4,12],[5,1,5,8],[5,9,5,10],[5,11,5,12],[6,1,6,8],[6,9,6,10],[6,11,6,12],[13,1,13,8],[13,9,13,10],[13,11,13,12],[14,1,14,8],[14,9,14,10],[14,11,14,12],[10,0,10,12],[11,1,11,8],[11,9,11,10],[11,11,11,12],[12,0,12,12],[18,1,18,8],[18,9,18,10],[18,11,18,12],[19,1,19,8],[19,9,19,10],[19,11,19,12],[15,1,15,8],[15,9,15,10],[15,11,15,12],[16,0,16,12],[17,1,17,8],[17,9,17,10],[17,11,17,12],[23,1,23,8],[23,9,23,10],[23,11,23,12],[24,1,24,8],[24,9,24,10],[24,11,24,12],[20,1,20,8],[20,9,20,10],[20,11,20,12],[21,0,21,12],[22,1,22,8],[22,9,22,10],[22,11,22,12],[25,0,25,12],[26,1,26,8],[26,9,26,10],[26,11,26,12],[27,1,27,8],[27,9,27,10],[27,11,27,12],[28,0,28,12],[29,1,29,8],[29,9,29,10],[29,11,29,12],[35,0,35,12],[30,0,30,12],[31,1,31,8],[31,9,31,10],[31,11,31,12],[32,1,32,8],[32,9,32,10],[32,11,32,12],[36,0,36,6],[36,7,36,12],[37,0,37,6],[37,7,37,12],[33,1,33,8],[33,9,33,10],[33,11,33,12],[34,1,34,8],[34,9,34,10],[34,11,34,12],[38,0,38,6],[38,7,38,12],[45,0,45,12],[39,0,39,12],[40,0,40,6],[40,7,40,12],[41,0,41,6],[41,7,41,12],[44,0,44,12],[42,0,42,6],[42,7,42,12]]}
[{"$f":"\"Приложение к опросному листу \" & '0РТ.101.003 ОЛ'!D12","v":"Приложение к опросному листу "}]
["Требования к составным частям переключающего устройства SYXZ7-9-35/200"]
["Основные параметры контактора"]
["№ п/п","Параметр",null,null,null,null,null,null,null,"Значение параметра Электрощит Самара",null,"Значение параметра ЗаказчикаП1"]
[]
["П1.1","Механическая износостойкость, не менее, количество переключений",null,null,null,null,null,null,null,{"$f":"MexIzPY('0РТ.101.003 ОЛ'!_Tip2)","v":"500000"},null,"-"]
["П1.2","Электрическая износостойкость, не менее, количество переключений",null,null,null,null,null,null,null,{"$f":"ElIzPY('0РТ.101.003 ОЛ'!_Tip2)","v":"50000"},null,"-"]
["П1.3","Количество переключений до смены масла контактора , не менее, количество переключений",null,null,null,null,null,null,null,{"$f":"ReviziaPY('0РТ.101.003 ОЛ'!_Tip2)","v":"50000"},null,"-"]
[]
["П1.4","Эксплуатационная документация на русском языке на бумажном носителе, экз.",null,null,null,null,null,null,null,1,null,"-"]
["Индикатор уровня масла"]
["П1.5","Тип индикатора уровня масла",null,null,null,null,null,null,null,{"$f":"TipIndTYrMasla('0РТ.101.003 ОЛ'!_Tip2)","v":"Стеклянный"},null,"-"]
["Индикатор температуры"]
["П1.6","Тип индикатора температуры переключающего устройства",null,null,null,null,null,null,null,{"$f":"TipIndTEmp('0РТ.101.003 ОЛ'!_Tip2)","v":"BWTY"},null,"-"]
["П1.6.1","Контактная система температуры минимальной/максимальной",null,null,null,null,null,null,null,"1 NO/1 NO",null,"-"]
["П1.6.2","Номинальное напряжение питания, В",null,null,null,null,null,null,null,"AC 220 В 50 Гц",null,"-"]
["Реле струйное"]
["П1.7","Тип реле",null,null,null,null,null,null,null,{"$f":"TipReleSt('0РТ.101.003 ОЛ'!_Tip2)","v":"QJ6-25"},null,"-"]
["П1.7.1","Уставка по скорости потока масла, м/с",null,null,null,null,null,null,null,10,null,"-"]
["П1.7.2","Контактная система сигнальная/отключающая",null,null,null,null,null,null,null,"Нет/2 NO",null,"-"]
["П1.7.3","Номинальное напряжение питания, В",null,null,null,null,null,null,null,"AC/DC 220 В 50 Гц",null,"-"]
["Клапан предохранительный"]
["П1.8","Тип клапана предохранительного",null,null,null,null,null,null,null,"Мембрана",null,"-"]
["П1.8.1","Контактная система",null,null,null,null,null,null,null,"-",null,"-"]
["П1.8.2","Номинальное напряжение питания, В",null,null,null,null,null,null,null,"-",null,"-"]
["Воздухоосушитель"]
["П1.9","Тип воздухоосушителя",null,null,null,null,null,null,null,"Обслуживаемый",null,"-"]
["П1.9.1","Индикаторный силикагель",null,null,null,null,null,null,null,"Да",null,"-"]
["Регулятор напряжения"]
["П1.10","Тип регулятора напряжения",null,null,null,null,null,null,null,"YK-3",null,"-"]
["Питание цепей электродвигателя и управленияП2"]
["П1.11","Номинальное напряжение питания, В",null,null,null,null,null,null,null,380,null,"-"]
["П1.11.1","Тип напряжения питания электродвигателя",null,null,null,null,null,null,null,"2AC/N",null,"-"]
["П1.11.2","Частота напряжения питания электродвигателя, Гц",null,null,null,null,null,null,null,50,null,"-"]
["П1.11.3","Длина кабеля между переключающим устройством и регулятором напряжения",null,null,null,null,null,null,null,30,null,"-"]
["Комплект запасных частей"]
["Комплект запасных частей Электрощит Самара",null,null,null,null,null,null,"Комплект запасных частей ЗаказчикаП1"]
[]
["-",null,null,null,null,null,null,"-"]
["Особые требования"]
["Особые требования Электрощит Самара",null,null,null,null,null,null,"Особые требования ЗаказчикаП1"]
[]
["-",null,null,null,null,null,null,"-"]
[]
["П1Значение является справочным."]
["П2Питание и управление переключающего устройства осуществляется только через регулятор напряжения с помощью кабеля."]

{"sheet":"RS12-Y-200-41.5-10.09.0","index":2,"n_rows":110,"n_cols":12,"rows_kept":110,"cut":false,"hidden":true,"merged":[[107,0,107,6],[107,7,107,12],[59,0,59,12],[56,9,56,10],[57,1,57,8],[57,9,57,10],[57,11,57,12],[58,1,58,8],[58,9,58,10],[58,11,58,12],[60,9,60,10],[61,11,61,12],[69,9,69,10],[69,11,69,12],[65,1,65,8],[65,9,65,10],[65,11,65,12],[66,1,66,8],[66,9,66,10],[66,11,66,12],[64,1,64,8],[64,9,64,10],[64,11,64,12],[63,1,63,8],[55,11,55,12],[56,11,56,12],[56,1,56,8],[0,0,0,12],[9,11,9,12],[2,0,2,12],[3,0,4,0],[3,1,4,8],[3,9,4,10],[3,11,4,12],[5,11,5,12],[6,11,6,12],[7,0,8,0],[7,1,8,8],[7,9,8,10],[7,11,8,12],[5,1,5,8],[6,1,6,8],[5,9,5,10],[6,9,6,10],[9,1,9,8],[9,9,9,10],[12,1,12,8],[12,9,12,10],[12,11,12,12],[13,1,13,8],[13,9,13,10],[13,11,13,12],[10,0,10,12],[11,1,11,8],[11,9,11,10],[11,11,11,12],[17,1,17,8],[17,9,17,10],[18,1,18,8],[18,9,18,10],[23,1,23,8],[14,1,14,8],[14,9,14,10],[14,11,14,12],[15,0,15,12],[16,1,16,8],[16,9,16,10],[21,1,21,8],[21,9,21,10],[21,11,21,12],[22,1,22,8],[22,9,22,10],[22,11,22,12],[25,11,25,12],[23,9,23,10],[23,11,23,12],[19,0,19,12],[20,1,20,8],[20,9,20,10],[20,11,20,12],[27,11,27,12],[24,0,24,12],[25,1,25,8],[25,9,25,10],[47,9,47,10],[47,11,47,12],[49,1,49,8],[49,9,49,10],[51,11,51,12],[50,0,50,12],[54,0,54,12],[51,1,51,8],[51,9,51,10],[53,1,53,8],[52,1,52,8],[52,9,52,10],[53,9,53,10],[49,11,49,12],[52,11,52,12],[53,11,53,12],[111,11,111,12],[112,11,112,12],[16,11,16,12],[17,11,17,12],[18,11,18,12],[48,9,48,10],[55,1,55,8],[55,9,55,10],[33,1,33,8],[33,9,33,10],[33,11,33,12],[34,1,34,8],[34,9,34,10],[34,11,34,12],[31,1,31,8],[31,9,31,10],[31,11,31,12],[32,1,32,8],[32,9,32,10],[32,11,32,12],[62,11,62,12],[62,1,62,8],[62,9,62,10],[45,0,45,12],[35,0,35,12],[36,1,36,8],[36,9,36,10],[36,11,36,12],[1,0,1,12],[48,1,48,8],[37,11,37,12],[38,11,38,12],[40,11,40,12],[48,11,48,12],[44,11,44,12],[46,0,46,12],[30,1,30,8],[30,9,30,10],[30,11,30,12],[26,1,26,8],[26,9,26,10],[26,11,26,12],[27,1,27,8],[27,9,27,10],[28,0,28,12],[29,1,29,8],[29,9,29,10],[29,11,29,12],[63,9,63,10],[63,11,63,12],[60,11,60,12],[61,1,61,8],[61,9,61,10],[60,1,60,8],[68,1,68,8],[68,9,68,10],[68,11,68,12],[87,1,87,8],[69,1,69,8],[80,1,80,8],[80,9,80,10],[80,11,80,12],[74,1,74,8],[74,9,74,10],[74,11,74,12],[67,0,67,12],[75,1,75,8],[75,9,75,10],[75,11,75,12],[77,0,77,12],[70,1,70,8],[70,9,70,10],[70,11,70,12],[72,1,72,8],[78,1,78,8],[78,9,78,10],[78,11,78,12],[71,0,71,12],[79,1,79,8],[79,9,79,10],[79,11,79,12],[84,1,84,8],[84,9,84,10],[84,11,84,12],[85,1,85,8],[85,9,85,10],[85,11,85,12],[86,1,86,8],[86,9,86,10],[86,11,86,12],[73,11,73,12],[81,1,81,8],[81,9,81,10],[81,11,81,12],[82,1,82,8],[82,9,82,10],[82,11,82,12],[83,1,83,8],[83,9,83,10],[83,11,83,12],[73,9,73,10],[88,1,88,8],[88,9,88,10],[88,11,88,12],[37,1,37,8],[38,1,38,8],[40,1,40,8],[47,1,47,8],[37,9,37,10],[38,9,38,10],[40,9,40,10],[39,0,39,12],[76,1,76,8],[76,9,76,10],[76,11,76,12],[41,0,41,12],[42,1,42,8],[42,9,42,10],[42,11,42,12],[43,0,43,12],[44,1,44,8],[44,9,44,10],[72,9,72,10],[72,11,72,12],[73,1,73,8],[102,7,102,12],[103,0,103,6],[89,1,89,8],[95,1,95,8],[95,9,95,10],[95,11,95,12],[92,1,92,8],[92,9,92,10],[92,11,92,12],[94,1,94,8],[94,9,94,10],[94,11,94,12],[89,9,89,10],[89,11,89,12],[93,1,93,8],[93,9,93,10],[93,11,93,12],[90,1,90,8],[90,9,90,10],[90,11,90,12],[91,1,91,8],[91,9,91,10],[91,11,91,12],[103,7,103,12],[87,9,87,10],[87,11,87,12],[109,0,109,12],[99,1,99,8],[99,9,99,10],[99,11,99,12],[96,1,96,8],[96,9,96,10],[96,11,96,12],[97,1,97,8],[97,9,97,10],[97,11,97,12],[98,1,98,8],[98,9,98,10],[98,11,98,12],[104,0,104,12],[105,0,105,6],[105,7,105,12],[106,0,106,6],[106,7,106,12],[100,0,100,12],[101,0,101,6],[101,7,101,12],[102,0,102,6]]}
[{"$f":"\"Приложение к опросному листу \" & '0РТ.101.003 ОЛ'!D12","v":"Приложение к опросному листу "}]
["Требования к составным частям переключающего устройства RS12-Y-200-41.5-10.09.0"]
["Основные параметры контактора"]
["№ п/п","Параметр",null,null,null,null,null,null,null,"Значение параметра Электрощит Самара",null,"Значение параметра ЗаказчикаП1"]
[]
["П1.1","Механическая износостойкость, не менее, количество переключений",null,null,null,null,null,null,null,{"$f":"MexIzPY('0РТ.101.003 ОЛ'!_Tip2)","v":"500000"},null,"-"]
["П1.2","Электрическая износостойкость, не менее, количество переключений",null,null,null,null,null,null,null,{"$f":"ElIzPY('0РТ.101.003 ОЛ'!_Tip2)","v":"50000"},null,"-"]
["П1.3","Количество переключений до смены жидкого диэлектрика контактора, не менее, количество переключений",null,null,null,null,null,null,null,{"$f":"ReviziaPY('0РТ.101.003 ОЛ'!_Tip2)","v":"50000"},null,"-"]
[]
["П1.4","Эксплуатационная документация на русском языке на бумажном носителе, экз.",null,null,null,null,null,null,null,1,null,"-"]
["Индикатор уровня жидкого диэлектрика"]
["П1.5","Тип индикатора уровня жидкого диэлектрика",null,null,null,null,null,null,null,{"$f":"TipIndTYrMasla('0РТ.101.003 ОЛ'!_Tip2)","v":"Стеклянный"},null,"-"]
["П1.5.1","Контрольные метки",null,null,null,null,null,null,null,{"$f":"Metki('0РТ.101.003 ОЛ'!_Kli1,J12)","v":"-"},null,"-"]
["П1.5.2","Контактная система уровня минимального/максимального",null,null,null,null,null,null,null,"1 NO/1 NO",null,"-"]
["П1.5.3","Номинальное напряжение питания, В",null,null,null,null,null,null,null,"AC/DC 220 В 50 Гц",null,"-"]
["Индикатор температуры"]
["П1.6","Тип индикатора температуры переключающего устройства",null,null,null,null,null,null,null,{"$f":"TipIndTEmp('0РТ.101.003 ОЛ'!_Tip2)","v":"BWTY"},null,"-"]
["П1.6.1","Контактная система температуры минимальной/максимальной",null,null,null,null,null,null,null,"-",null,"-"]
["П1.6.2","Номинальное напряжение питания, В",null,null,null,null,null,null,null,"-",null,"-"]
["Реле струйное"]
["П1.7","Тип реле",null,null,null,null,null,null,null,{"$f":"TipReleSt('0РТ.101.003 ОЛ'!_Tip2)","v":"QJ6-25"},null,"-"]
["П1.7.1","Уставка по скорости потока жидкого диэлектрика, м/с",null,null,null,null,null,null,null,0.9,null,"-"]
["П1.7.2","Контактная система сигнальная/отключающая",null,null,null,null,null,null,null,"Нет/2 NO",null,"-"]
["П1.7.3","Номинальное напряжение питания, В",null,null,null,null,null,null,null,"AC/DC 220 В 50 Гц",null,"-"]
["Клапан предохранительный"]
["П1.8","Тип клапана предохранительного",null,null,null,null,null,null,null,"Мембрана",null,"-"]
["П1.8.1","Контактная система",null,null,null,null,null,null,null,null,null,"-"]
["П1.8.2","Номинальное напряжение питания, В",null,null,null,null,null,null,null,"-",null,"-"]
["Воздухоосушитель"]
["П1.9","Тип воздухоосушителя",null,null,null,null,null,null,null,"Обслуживаемый",null,"-"]
["П1.9.1","Технический силикагель",null,null,null,null,null,null,null,"-",null,"-"]
["П1.9.2","Индикаторный силикагель",null,null,null,null,null,null,null,"-",null,"-"]
["П1.9.3","Тип сигнала",null,null,null,null,null,null,null,"-",null,"-"]
["П1.9.4","Контактная система",null,null,null,null,null,null,null,"-",null,"-"]
["П1.9.5","Номинальное напряжение питания, В",null,null,null,null,null,null,null,"-",null,"-"]
["Цифровой дистанционный указатель положения"]
["П1.10","Тип цифрового дистанционного указателя положения",null,null,null,null,null,null,null,"µSI-02",null,"-"]
["П1.10.1","Тип сигнала",null,null,null,null,null,null,null,"Сопротивление",null,"-"]
["П1.10.2","Номинальное напряжение питания, В",null,null,null,null,null,null,null,"AC 220 В 50 Гц",null,"-"]
["Устройство дистанционного управления"]
["П1.11","Тип устройства дистанционного управления",null,null,null,null,null,null,null,"-",null,"-"]
["Регулятор напряжения"]
["П1.12","Тип регулятора напряжения",null,null,null,null,null,null,null,"REG-DA",null,"-"]
["Система мониторинга"]
["П1.13","Тип системы мониторинга",null,null,null,null,null,null,null,"-",null,"-"]
["Требования к составным частям привода"]
["Основные параметры привода"]
["П2.1","Тип привода",null,null,null,null,null,null,null,{"$f":"MotPriv('0РТ.101.003 ОЛ'!_Tip2)","v":"-"},null,"-"]
["П2.2","Тип кабельных вводов",null,null,null,null,null,null,null,"2хМ40/2хМ25",null,"-"]
["П2.3","Запирание двери",null,null,null,null,null,null,null,"-",null,"-"]
["Питание цепей электродвигателя"]
["П2.3","Номинальное напряжение питания, В",null,null,null,null,null,null,null,400,null,"-"]
["П2.3.1","Тип напряжения питания электродвигателя",null,null,null,null,null,null,null,"3AC/N",null,"-"]
["П2.3.2","Частота напряжения питания электродвигателя, Гц",null,null,null,null,null,null,null,50,null,"-"]
["Питание цепей управления"]
["П2.4","Источник питания цепей управления",null,null,null,null,null,null,null,"От цепей электродвигателя",null,"-"]
["П2.4.1","Номинальное напряжение питания, В",null,null,null,null,null,null,null,230,null,"-"]
["П2.4.2","Тип напряжения питания цепей управления",null,null,null,null,null,null,null,"AC",null,"-"]
["П2.4.3","Частота напряжения питания цепей управления, Гц",null,null,null,null,null,null,null,50,null,"-"]
["Цепи управления"]
["П2.5","Переключатель \"Местное - Дистанционное\"",null,null,null,null,null,null,null,"Двухпозиционный",null,"-"]
["П2.5.1","Тип переключателя \"Местное - Дистанционное\"",null,null,null,null,null,null,null,"Переключатель",null,"-"]
["П2.6","Кнопка \"СТОП\"",null,null,null,null,null,null,null,"-",null,"-"]
["П2.7","Блокировка при температуре жидкого диэлектрика в контаторе ниже минус 25˚С",null,null,null,null,null,null,null,"Да",null,"-"]
["П2.7","Запрет на повторный сигнал на переключение на определенное время",null,null,null,null,null,null,null,"-",null,"-"]
["П2.8","Защита от нежеланных последовательных переключений",null,null,null,null,null,null,null,"-",null,"-"]
["П2.9","Контроль величины питающего напряжения электродвигателя",null,null,null,null,null,null,null,"-",null,"-"]
["Питание цепей вспомогательных"]
["П2.10","Источник питания цепей вспомогательных",null,null,null,null,null,null,null,"От цепей электродвигателя",null,"-"]
["П2.10.1","Номинальное напряжение питания, В",null,null,null,null,null,null,null,230,null,"-"]
["П2.10.2","Частота напряжения питания цепей вспомогательных, Гц",null,null,null,null,null,null,null,50,null,"-"]
["Цепи вспомогательные"]
["П2.11","Гигростат",null,null,null,null,null,null,null,"Да",null,"-"]
["П2.12","Включатель пользовательского контроля отопления",null,null,null,null,null,null,null,"-",null,"-"]
["П2.13","Включатель пользовательского контроля освещения",null,null,null,null,null,null,null,"-",null,"-"]
["П2.14","Розетка",null,null,null,null,null,null,null,"10 А/250 В/Schuko",null,"-"]
["П2.15","Индикация переключения",null,null,null,null,null,null,null,"-",null,"-"]
["Сигналы исходящие"]
["П2.16","Конечное положение",null,null,null,null,null,null,null,"1 NO",null,"-"]
["П2.17","Переключение направление",null,null,null,null,null,null,null,"-",null,"-"]
["П2.18","Переключение движение",null,null,null,null,null,null,null,"2 NO/1 NC",null,"-"]
["П2.19","Cостояние автоматического выключателя цепей электродвигателя",null,null,null,null,null,null,null,"2 NO/1 NC",null,"-"]
["П2.20","Cостояние автоматического выключателя цепей управления",null,null,null,null,null,null,null,"1 CO",null,"-"]
["П2.21","Cостояние автоматического выключателя цепей вспомогательных",null,null,null,null,null,null,null,"-",null,"-"]
["П2.22","Состояние запрета на повторный сигнал на переключение на время",null,null,null,null,null,null,null,"-",null,"-"]
["П2.23","Cостояние реле контроля фаз питания цепей электродвигателя",null,null,null,null,null,null,null,"-",null,"-"]
["П2.24","Cостояние реле контроля напряжения питания цепей электродвигателя",null,null,null,null,null,null,null,"-",null,"-"]
["П2.25","Состояние блокировки при температуре в контакторе ниже минус 25˚С",null,null,null,null,null,null,null,"1 CO",null,"-"]
["П2.26","Cостояние двери",null,null,null,null,null,null,null,"-",null,"-"]
["П2.27","Температура жидкого диэлектрика в контаторе",null,null,null,null,null,null,null,"4-20 мА",null,"-"]
["П2.28","Температура воздуха в приводе",null,null,null,null,null,null,null,"-",null,"-"]
["П2.29","Состояние положения первым рядом сопротивлений (0.25 Вт)",null,null,null,null,null,null,null,"6 Ом",null,"-"]
["П2.30","Состояние положения вторым рядом сопротивлений (0.25 Вт)",null,null,null,null,null,null,null,"-",null,"-"]
["П2.31","Сопротивления к первому и второму рядам сопротивлений (0.25 Вт)",null,null,null,null,null,null,null,"-",null,"-"]
["П2.32","Состояние положения контактами NO типа \"отключение перед включением\"",null,null,null,null,null,null,null,"-",null,"-"]
["П2.33","Состояние положения контактами NO типа \"включение перед отключением\"",null,null,null,null,null,null,null,"-",null,"-"]
["П2.34","Состояние положения выводом 4-20 мА",null,null,null,null,null,null,null,1,null,"-"]
["П2.35","Состояние положения выводом BCD",null,null,null,null,null,null,null,"-",null,"-"]
["П2.36","Состояние положения выводом BIN",null,null,null,null,null,null,null,"-",null,"-"]
["П2.37","Состояние положения выводом GRAY",null,null,null,null,null,null,null,"-",null,"-"]
["Комплект запасных частей"]
["Комплект запасных частей Электрощит Самара",null,null,null,null,null,null,"Комплект запасных частей ЗаказчикаП1"]
[]
["-",null,null,null,null,null,null,"-"]
["Особые требования"]
["Особые требования Электрощит Самара",null,null,null,null,null,null,"Особые требования ЗаказчикаП1"]
[]
["-",null,null,null,null,null,null,"-"]
[]
["П1Значение является справочным."]

{"sheet":"SYXZZ-40.5!200-9","index":3,"n_rows":46,"n_cols":12,"rows_kept":46,"cut":false,"hidden":false,"merged":[[5,1,5,8],[5,9,5,10],[5,11,5,12],[6,1,6,8],[6,9,6,10],[6,11,6,12],[0,0,0,12],[1,0,1,12],[2,0,2,12],[3,0,4,0],[3,1,4,8],[3,9,4,10],[3,11,4,12],[11,1,11,8],[11,9,11,10],[11,11,11,12],[7,0,8,0],[7,1,8,8],[7,9,8,10],[7,11,8,12],[9,1,9,8],[9,9,9,10],[9,11,9,12],[10,0,10,12],[12,0,12,12],[13,1,13,8],[13,9,13,10],[13,11,13,12],[14,1,14,8],[14,9,14,10],[14,11,14,12],[15,1,15,8],[15,9,15,10],[15,11,15,12],[16,0,16,12],[17,1,17,8],[17,9,17,10],[17,11,17,12],[18,1,18,8],[18,9,18,10],[18,11,18,12],[19,1,19,8],[19,9,19,10],[19,11,19,12],[20,1,20,8],[20,9,20,10],[20,11,20,12],[21,0,21,12],[22,1,22,8],[22,9,22,10],[22,11,22,12],[23,1,23,8],[23,9,23,10],[23,11,23,12],[24,1,24,8],[24,9,24,10],[24,11,24,12],[27,1,27,8],[27,9,27,10],[27,11,27,12],[25,0,25,12],[26,1,26,8],[26,9,26,10],[26,11,26,12],[33,1,33,8],[33,9,33,10],[33,11,33,12],[30,0,30,12],[31,1,31,8],[31,9,31,10],[31,11,31,12],[28,0,28,12],[29,1,29,8],[29,9,29,10],[29,11,29,12],[32,1,32,8],[32,9,32,10],[32,11,32,12],[35,0,35,12],[36,0,36,6],[36,7,36,12],[34,1,34,8],[34,9,34,10],[34,11,34,12],[48,11,48,12],[45,0,45,12],[44,0,44,12],[47,11,47,12],[42,0,42,6],[42,7,42,12],[37,0,37,6],[37,7,37,12],[38,0,38,6],[38,7,38,12],[41,0,41,6],[41,7,41,12],[39,0,39,12],[40,0,40,6],[40,7,40,12]]}
[{"$f":"\"Приложение к опросному листу \" & '0РТ.101.003 ОЛ'!D12","v":"Приложение к опросному листу "}]
["Требования к составным частям переключающего устройства SYXZZ-35/200-9"]
["Основные параметры контактора"]
["№ п/п","Параметр",null,null,null,null,null,null,null,"Значение параметра Электрощит Самара",null,"Значение параметра ЗаказчикаП1"]
[]
["П1.1","Механическая износостойкость, не менее, количество переключений",null,null,null,null,null,null,null,{"$f":"MexIzPY('0РТ.101.003 ОЛ'!_Tip2)","v":"500000"},null,"-"]
["П1.2","Электрическая износостойкость, не менее, количество переключений",null,null,null,null,null,null,null,100000,null,"-"]
["П1.3","Количество переключений до смены жидкого диэлектрика контактора, не менее, количество переключений",null,null,null,null,null,null,null,{"$f":"ReviziaPY('0РТ.101.003 ОЛ'!_Tip2)","v":"50000"},null,"-"]
[]
["П1.4","Эксплуатационная документация на русском языке на бумажном носителе, экз.",null,null,null,null,null,null,null,1,null,"-"]
["Индикатор уровня жидкого диэлектрика"]
["П1.5","Тип индикатора уровня жидкого диэлектрика",null,null,null,null,null,null,null,{"$f":"TipIndTYrMasla('0РТ.101.003 ОЛ'!_Tip2)","v":"Стеклянный"},null,"-"]
["Индикатор температуры"]
["П1.6","Тип индикатора температуры переключающего устройства",null,null,null,null,null,null,null,{"$f":"TipIndTEmp('0РТ.101.003 ОЛ'!_Tip2)","v":"BWTY"},null,"-"]
["П1.6.1","Контактная система температуры минимальной/максимальной",null,null,null,null,null,null,null,"1 NO/1 NO",null,"-"]
["П1.6.2","Номинальное напряжение питания, В",null,null,null,null,null,null,null,"AC 220 В 50 Гц",null,"-"]
["Реле струйное"]
["П1.7","Тип реле",null,null,null,null,null,null,null,{"$f":"TipReleSt('0РТ.101.003 ОЛ'!_Tip2)","v":"QJ6-25"},null,"-"]
["П1.7.1","Уставка по скорости потока жидкого диэлектрика, м/с",null,null,null,null,null,null,null,10,null,"-"]
["П1.7.2","Контактная система сигнальная/отключающая",null,null,null,null,null,null,null,"Нет/2 NO",null,"-"]
["П1.7.3","Номинальное напряжение питания, В",null,null,null,null,null,null,null,"AC/DC 220 В 50 Гц",null,"-"]
["Клапан предохранительный"]
["П1.8","Тип клапана предохранительного",null,null,null,null,null,null,null,"Мембрана",null,"-"]
["П1.8.1","Контактная система",null,null,null,null,null,null,null,"-",null,"-"]
["П1.8.2","Номинальное напряжение питания, В",null,null,null,null,null,null,null,"-",null,"-"]
["Воздухоосушитель"]
["П1.9","Тип воздухоосушителя",null,null,null,null,null,null,null,"Обслуживаемый",null,"-"]
["П1.9.1","Индикаторный силикагель",null,null,null,null,null,null,null,"Да",null,"-"]
["Регулятор напряжения"]
["П1.10","Тип регулятора напряжения",null,null,null,null,null,null,null,"HM(B)K-35",null,"-"]
["Питание цепей электродвигателя и управленияП2"]
["П1.11","Номинальное напряжение питания, В",null,null,null,null,null,null,null,380,null,"-"]
["П1.11.1","Тип напряжения питания электродвигателя",null,null,null,null,null,null,null,"2AC/N",null,"-"]
["П1.11.2","Частота напряжения питания электродвигателя, Гц",null,null,null,null,null,null,null,50,null,"-"]
["П1.11.3","Длина кабеля между переключающим устройством и регулятором напряжения",null,null,null,null,null,null,null,30,null,"-"]
["Комплект запасных частей"]
["Комплект запасных частей Электрощит Самара",null,null,null,null,null,null,"Комплект запасных частей ЗаказчикаП1"]
[]
["-",null,null,null,null,null,null,"-"]
["Особые требования"]
["Особые требования Электрощит Самара",null,null,null,null,null,null,"Особые требования ЗаказчикаП1"]
[]
["-",null,null,null,null,null,null,"-"]
[]
["П1Значение является справочным."]
["П2Питание и управление переключающего устройства осуществляется только через регулятор напряжения с помощью кабеля."]

{"sheet":"CVIII-350Y!40.5-10090","index":4,"n_rows":109,"n_cols":12,"rows_kept":109,"cut":false,"hidden":true,"merged":[[21,1,21,8],[21,9,21,10],[21,11,21,12],[17,1,17,8],[17,9,17,10],[17,11,17,12],[18,1,18,8],[16,1,16,8],[16,9,16,10],[16,11,16,12],[20,11,20,12],[12,1,12,8],[12,9,12,10],[12,11,12,12],[13,1,13,8],[13,9,13,10],[13,11,13,12],[14,1,14,8],[14,9,14,10],[14,11,14,12],[15,0,15,12],[0,0,0,12],[1,0,1,12],[2,0,2,12],[3,0,4,0],[3,1,4,8],[3,9,4,10],[3,11,4,12],[11,1,11,8],[11,9,11,10],[11,11,11,12],[7,0,8,0],[7,1,8,8],[7,9,8,10],[7,11,8,12],[9,1,9,8],[9,9,9,10],[9,11,9,12],[10,0,10,12],[5,1,5,8],[5,9,5,10],[5,11,5,12],[6,1,6,8],[6,9,6,10],[6,11,6,12],[18,9,18,10],[18,11,18,12],[19,0,19,12],[20,1,20,8],[29,11,29,12],[25,1,25,8],[25,9,25,10],[25,11,25,12],[26,1,26,8],[26,9,26,10],[26,11,26,12],[22,1,22,8],[22,9,22,10],[22,11,22,12],[23,1,23,8],[23,9,23,10],[23,11,23,12],[24,0,24,12],[27,1,27,8],[27,9,27,10],[27,11,27,12],[28,0,28,12],[20,9,20,10],[30,1,30,8],[30,9,30,10],[30,11,30,12],[31,1,31,8],[31,9,31,10],[31,11,31,12],[29,1,29,8],[37,1,37,8],[37,9,37,10],[37,11,37,12],[36,1,36,8],[36,9,36,10],[36,11,36,12],[32,1,32,8],[32,9,32,10],[32,11,32,12],[33,1,33,8],[33,9,33,10],[33,11,33,12],[34,1,34,8],[34,9,34,10],[34,11,34,12],[35,0,35,12],[29,9,29,10],[38,1,38,8],[38,9,38,10],[38,11,38,12],[39,0,39,12],[40,1,40,8],[40,9,40,10],[40,11,40,12],[44,1,44,8],[44,9,44,10],[44,11,44,12],[42,0,42,12],[43,0,43,12],[41,1,41,8],[41,9,41,10],[41,11,41,12],[51,1,51,8],[51,9,51,10],[51,11,51,12],[52,1,52,8],[52,9,52,10],[52,11,52,12],[45,1,45,8],[45,9,45,10],[45,11,45,12],[46,1,46,8],[46,9,46,10],[46,11,46,12],[50,0,50,12],[47,1,47,8],[47,9,47,10],[47,11,47,12],[49,1,49,8],[49,9,49,10],[49,11,49,12],[48,1,48,8],[48,9,48,10],[48,11,48,12],[53,1,53,8],[53,9,53,10],[53,11,53,12],[56,0,56,12],[60,1,60,8],[60,9,60,10],[60,11,60,12],[61,0,61,12],[58,1,58,8],[58,9,58,10],[58,11,58,12],[59,1,59,8],[59,9,59,10],[59,11,59,12],[57,1,57,8],[54,0,54,12],[55,1,55,8],[55,9,55,10],[55,11,55,12],[57,9,57,10],[57,11,57,12],[62,1,62,8],[62,9,62,10],[62,11,62,12],[63,1,63,8],[63,9,63,10],[63,11,63,12],[69,1,69,8],[69,9,69,10],[69,11,69,12],[67,0,67,12],[68,1,68,8],[68,9,68,10],[68,11,68,12],[64,9,66,10],[64,1,66,8],[64,0,66,0],[64,11,66,12],[88,1,88,8],[88,9,88,10],[88,11,88,12],[89,1,89,8],[89,11,89,12],[87,1,87,8],[87,9,87,10],[87,11,87,12],[85,1,85,8],[85,9,85,10],[85,11,85,12],[89,9,89,10],[102,0,102,6],[102,7,102,12],[77,1,77,8],[77,9,77,10],[77,11,77,12],[80,1,80,8],[78,11,78,12],[73,9,73,10],[93,1,93,8],[93,9,93,10],[93,11,93,12],[84,1,84,8],[84,11,84,12],[86,1,86,8],[86,9,86,10],[86,11,86,12],[80,9,80,10],[80,11,80,12],[92,1,92,8],[92,9,92,10],[92,11,92,12],[84,9,84,10],[91,1,91,8],[91,9,91,10],[110,11,110,12],[111,11,111,12],[108,0,108,12],[105,0,105,6],[105,7,105,12],[104,0,104,6],[104,7,104,12],[103,0,103,12],[106,0,106,6],[106,7,106,12],[90,9,90,10],[90,11,90,12],[98,1,98,8],[98,9,98,10],[98,11,98,12],[101,0,101,6],[101,7,101,12],[100,0,100,6],[100,7,100,12],[99,0,99,12],[94,1,94,8],[94,9,94,10],[94,11,94,12],[97,1,97,8],[97,9,97,10],[97,11,97,12],[95,1,95,8],[95,9,95,10],[95,11,95,12],[96,1,96,8],[96,9,96,10],[96,11,96,12],[91,11,91,12],[90,1,90,8],[70,1,70,8],[70,9,70,10],[70,11,70,12],[71,0,71,12],[73,1,73,8],[79,0,79,12],[83,0,83,12],[74,0,74,12],[75,1,75,8],[75,9,75,10],[75,11,75,12],[76,1,76,8],[76,9,76,10],[76,11,76,12],[78,1,78,8],[78,9,78,10],[81,0,82,0],[81,1,82,8],[81,9,82,10],[81,11,82,12],[73,11,73,12],[72,1,72,8],[72,9,72,10],[72,11,72,12]]}
[{"$f":"\"Приложение к опросному листу \" & '0РТ.101.003 ОЛ'!D12","v":"Приложение к опросному листу "}]
["Требования к составным частям переключающего устройства CV III-350Y/40.5-10090"]
["Основные параметры контактора"]
["№ п/п","Параметр",null,null,null,null,null,null,null,"Значение параметра Электрощит Самара",null,"Значение параметра ЗаказчикаП1"]
[]
["П1.1","Механическая износостойкость, не менее, количество переключений",null,null,null,null,null,null,null,{"$f":"MexIzPY('0РТ.101.003 ОЛ'!_Tip2)","v":"500000"},null,"-"]
["П1.2","Электрическая износостойкость, не менее, количество переключений",null,null,null,null,null,null,null,{"$f":"ElIzPY('0РТ.101.003 ОЛ'!_Tip2)","v":"50000"},null,"-"]
["П1.3","Количество переключений до смены жидкого диэлектрика контактора, не менее, количество переключений",null,null,null,null,null,null,null,{"$f":"ReviziaPY('0РТ.101.003 ОЛ'!_Tip2)","v":"50000"},null,"-"]
[]
["П1.4","Эксплуатационная документация на русском языке на бумажном носителе, экз.",null,null,null,null,null,null,null,1,null,"-"]
["Индикатор уровня жидкого диэлектрика"]
["П1.5","Тип индикатора уровня жидкого диэлектрика",null,null,null,null,null,null,null,{"$f":"TipIndTYrMasla('0РТ.101.003 ОЛ'!_Tip2)","v":"Стеклянный"},null,"-"]
["П1.5.1","Контрольные метки",null,null,null,null,null,null,null,{"$f":"Metki('0РТ.101.003 ОЛ'!_Kli1,J12)","v":"-"},null,"-"]
["П1.5.2","Контактная система уровня минимального/максимального",null,null,null,null,null,null,null,"1 NO/1 NO",null,"-"]
["П1.5.3","Номинальное напряжение питания, В",null,null,null,null,null,null,null,"AC/DC 220 В 50 Гц",null,"-"]
["Индикатор температуры"]
["П1.6","Тип индикатора температуры переключающего устройства",null,null,null,null,null,null,null,{"$f":"TipIndTEmp('0РТ.101.003 ОЛ'!_Tip2)","v":"BWTY"},null,"-"]
["П1.6.1","Контактная система температуры минимальной/максимальной",null,null,null,null,null,null,null,"-",null,"-"]
["П1.6.2","Номинальное напряжение питания, В",null,null,null,null,null,null,null,"-",null,"-"]
["Реле струйное"]
["П1.7","Тип реле",null,null,null,null,null,null,null,{"$f":"TipReleSt('0РТ.101.003 ОЛ'!_Tip2)","v":"QJ6-25"},null,"-"]
["П1.7.1","Уставка по скорости потока жидкого диэлектрика, м/с",null,null,null,null,null,null,null,10,null,"-"]
["П1.7.2","Контактная система сигнальная/отключающая",null,null,null,null,null,null,null,"Нет/2 NO",null,"-"]
["П1.7.3","Номинальное напряжение питания, В",null,null,null,null,null,null,null,"AC/DC 220 В 50 Гц",null,"-"]
["Клапан предохранительный"]
["П1.8","Тип клапана предохранительного",null,null,null,null,null,null,null,"Мембрана",null,"-"]
["П1.8.1","Контактная система",null,null,null,null,null,null,null,"-",null,"-"]
["П1.8.2","Номинальное напряжение питания, В",null,null,null,null,null,null,null,"-",null,"-"]
["Воздухоосушитель"]
["П1.9","Тип воздухоосушителя",null,null,null,null,null,null,null,"Обслуживаемый",null,"-"]
["П1.9.1","Технический силикагель",null,null,null,null,null,null,null,"Да",null,"-"]
["П1.9.2","Индикаторный силикагель",null,null,null,null,null,null,null,"Да",null,"-"]
["П1.9.3","Тип сигнала",null,null,null,null,null,null,null,"-",null,"-"]
["П1.9.4","Контактная система",null,null,null,null,null,null,null,"-",null,"-"]
["П1.9.5","Номинальное напряжение питания, В",null,null,null,null,null,null,null,"-",null,"-"]
["Цифровой дистанционный указатель положения"]
["П1.10","Тип цифрового дистанционного указателя положения",null,null,null,null,null,null,null,"HMC-3C",null,"-"]
["П1.10.1","Тип сигнала",null,null,null,null,null,null,null,"BCD",null,"-"]
["П1.10.2","Номинальное напряжение питания, В",null,null,null,null,null,null,null,"AC 220 В 50 Гц",null,"-"]
["Регулятор напряжения"]
["П1.11","Тип регулятора напряжения",null,null,null,null,null,null,null,"ET-SZ6",null,"-"]
["П1.12","Номинальное напряжение питания, В",null,null,null,null,null,null,null,"AC 220 В 50 Гц",null,"-"]
["Требования к составным частям привода"]
["Основные параметры привода"]
["П2.1","Тип привода",null,null,null,null,null,null,null,{"$f":"MotPriv('0РТ.101.003 ОЛ'!_Tip2)","v":"-"},null,"-"]
["П2.2","Тип кабельных вводов",null,null,null,null,null,null,null,"PG01-1",null,"-"]
["П2.3","Запирание двери",null,null,null,null,null,null,null,"Да",null,"-"]
["П2.4","Тип клемм",null,null,null,null,null,null,null,"UK5N",null,"-"]
["П2.5","Тип кабеля между приводом и регулятором напряжения",null,null,null,null,null,null,null,"RVV",null,"-"]
["П2.6","Длина кабеля между приводом и регулятором напряжения, м",null,null,null,null,null,null,null,30,null,"-"]
["Питание цепей электродвигателя"]
["П2.7","Номинальное напряжение питания, В",null,null,null,null,null,null,null,380,null,"-"]
["П2.7.1","Тип напряжения питания электродвигателя",null,null,null,null,null,null,null,"3AC/N",null,"-"]
["П2.7.2","Частота напряжения питания электродвигателя, Гц",null,null,null,null,null,null,null,50,null,"-"]
["Цепи электродвигателя"]
["П2.8","Защита цепей электродвигателя",null,null,null,null,null,null,null,"1 NO/1 NC",null,"-"]
["Питание цепей управления"]
["П2.9","Источник питания цепей управления",null,null,null,null,null,null,null,"От цепей электродвигателя",null,"-"]
["П2.9.1","Номинальное напряжение питания, В",null,null,null,null,null,null,null,220,null,"-"]
["П2.9.2","Тип напряжения питания цепей управления",null,null,null,null,null,null,null,"AC",null,"-"]
["П2.9.3","Частота напряжения питания цепей управления, Гц",null,null,null,null,null,null,null,50,null,"-"]
["Цепи управления"]
["П2.10","Защита цепей управления",null,null,null,null,null,null,null,"ВА AC/1 NO/1 NC"]
["П2.11","Защита цепей управления от перегрузки по току",null,null,null,null,null,null,null,"1 NC"]
["П2.12","Переключатель \"Местное - Выключен - Дистанционное\"",null,null,null,null,null,null,null,"Трехпозиционный/ Дистанционное 1 NO/ Местное 1 NC",null,"-"]
[]
[]
["Питание цепей вспомогательных"]
["П2.13","Источник питания цепей вспомогательных",null,null,null,null,null,null,null,"От цепей электродвигателя",null,"-"]
["П2.13.1","Номинальное напряжение питания, В",null,null,null,null,null,null,null,220,null,"-"]
["П2.13.2","Частота напряжения питания цепей вспомогательных, Гц",null,null,null,null,null,null,null,50,null,"-"]
["Цепи вспомогательные"]
["П2.14","Лампа",null,null,null,null,null,null,null,"Да",null,"-"]
["П2.15","Розетка",null,null,null,null,null,null,null,"XX-404D",null,"-"]
["Питание цепей нагрева"]
["П2.16","Источник питания цепей нагрева",null,null,null,null,null,null,null,"От цепей электродвигателя",null,"-"]
["П2.16.1","Номинальное напряжение питания, В",null,null,null,null,null,null,null,220,null,"-"]
["П2.16.2","Тип напряжения питания цепей нагрева",null,null,null,null,null,null,null,"AC",null,"-"]
["П2.16.3","Частота напряжения питания цепей нагрева, Гц",null,null,null,null,null,null,null,50,null,"-"]
["Цепи нагрева"]
["П2.17","Защита цепей нагрева",null,null,null,null,null,null,null,"ВА AC/1 NO/1 NC",null,"-"]
["П2.18","Тип нагревателя",null,null,null,null,null,null,null,"Сопротивление с гигростатом и термостатом",null,"-"]
[]
["Сигналы исходящие"]
["П2.19","Конечное положение",null,null,null,null,null,null,null,"1 NO",null,"-"]
["П2.20","Состояние пользовательского переключения",null,null,null,null,null,null,null,"1 NO",null,"-"]
["П2.21","Переключение не завершено",null,null,null,null,null,null,null,"1 CO",null,"-"]
["П2.22","Переключение движение",null,null,null,null,null,null,null,"Да",null,"-"]
["П2.23","Cостояние автоматического выключателя цепей электродвигателя",null,null,null,null,null,null,null,"1 NO"]
["П2.24","Cостояние кулачка на валу",null,null,null,null,null,null,null,"1 CO"]
["П2.25","Состояние блокировки при температуре в контакторе ниже минус 25˚С",null,null,null,null,null,null,null,"1 NO",null,"-"]
["П2.26","Температура жидкого диэлектрика в контаторе",null,null,null,null,null,null,null,"4-20 мА",null,"-"]
["П2.27","Состояние положения первым рядом сопротивлений (0.5 Вт)",null,null,null,null,null,null,null,"10 Ом",null,"-"]
["П2.28","Состояние положения вторым рядом сопротивлений (0.5 Вт)",null,null,null,null,null,null,null,"10 Ом",null,"-"]
["П2.29","Состояние положения \"break-before-make\"",null,null,null,null,null,null,null,"1 NO",null,"-"]
["П2.30","Состояние положения \"make-before-break \"",null,null,null,null,null,null,null,"-",null,"-"]
["П2.31","Состояние положения выводом 4-20 мА",null,null,null,null,null,null,null,1,null,"-"]
["П2.32","Состояние положения выводом 1-5 В",null,null,null,null,null,null,null,"-",null,"-"]
["П2.33","Состояние положения выводом BCD",null,null,null,null,null,null,null,1,null,"-"]
["Комплект запасных частей"]
["Комплект запасных частей Электрощит Самара",null,null,null,null,null,null,"Комплект запасных частей ЗаказчикаП1"]
[]
["-",null,null,null,null,null,null,"-"]
["Особые требования"]
["Особые требования Электрощит Самара",null,null,null,null,null,null,"Особые требования ЗаказчикаП1"]
[]
["-",null,null,null,null,null,null,"-"]
[]
["П1Значение является справочным."]

{"sheet":"Лист регистрации изменений","index":5,"n_rows":10,"n_cols":10,"rows_kept":10,"cut":false,"hidden":true,"merged":[[2,3,5,3],[2,4,5,4],[0,0,0,9],[1,0,5,0],[1,1,1,4],[1,5,5,5],[1,6,5,6],[1,7,5,7],[1,8,5,8],[1,9,5,9],[2,1,5,1],[2,2,5,2]]}
["Лист регистрации изменений"]
["Изм.","Номера листов (страниц)",null,null,null,"Всего листов (страниц) в докум.","№ докум.","Входящий № сопроводительного докум. и дата","Подп.","Дата"]
[null,"измененных","замененных","новых","аннулированных"]
[]
[]
[]
["-","-","-",9,"-",9,"0418-6946","-","Пятыгин","2017-05-31"]
[1,6,"-","-",3,6,"0418-7042","-","Пятыгин","2017-09-30"]
[2,"-",5,"-",1,5,"0441-1001","-","Пятыгин","2019-10-31"]
[3,null,null,null,null,null,"0441-0000",null,"Пятыгин"]